[Event "Titled Tuesday Blitz February 15 Late 2022"]
[White "Kostiukov, Alexandr"]
[Black "Araujo Filho, Luiz Antonio Coel"]
[WhiteFideId "14108100"]
[BlackFideId "2130661"]
[WhiteElo "2202"]
[BlackElo "2205"]
[Result "0-1"]
[Round "08"]
[TimeControl "180+1"]
[Date "2022.02.16"]
[WhiteClock "0:00:03"]
[BlackClock "0:00:11"]

1. g3 {[%clk 0:02:36]}  f5 {[%clk 0:02:56]} 2. Bg2 {[%clk 0:02:34]}  Nf6 {[%clk 0:02:57]} 3. c4 {[%clk 0:02:34]}  g6 {[%clk 0:02:57]} 4. Nf3 {[%clk 0:02:34]}  Bg7 {[%clk 0:02:58]} 5. O-O {[%clk 0:02:35]}  O-O {[%clk 0:02:58]} 6. d4 {[%clk 0:02:36]}  d6 {[%clk 0:02:58]} 7. Nc3 {[%clk 0:02:36]}  Nc6 {[%clk 0:02:58]} 8. d5 {[%clk 0:02:36]}  Na5 {[%clk 0:02:58]} 9. Qd3 {[%clk 0:02:28]}  c5 {[%clk 0:02:52]} 10. dxc6 {[%clk 0:02:23]}  Nxc6 {[%clk 0:02:50]} 11. b3 {[%clk 0:02:18]}  Nb4 {[%clk 0:02:18]} 12. Qd2 {[%clk 0:02:05]}  a5 {[%clk 0:02:07]} 13. Bb2 {[%clk 0:01:59]}  Rb8 {[%clk 0:02:00]} 14. Nd4 {[%clk 0:01:52]}  Bd7 {[%clk 0:01:38]} 15. Nd5 {[%clk 0:01:42]}  Nbxd5 {[%clk 0:01:35]} 16. cxd5 {[%clk 0:01:42]}  Qb6 {[%clk 0:01:24]} 17. Rac1 {[%clk 0:01:26]}  Rfc8 {[%clk 0:01:03]} 18. Qe3 {[%clk 0:01:11]}  Bf8 {[%clk 0:00:42]} 19. Ne6 {[%clk 0:01:09]}  Qxe3 {[%clk 0:00:36]} 20. fxe3 {[%clk 0:01:08]}  Bxe6 {[%clk 0:00:36]} 21. dxe6 {[%clk 0:00:57]}  Bh6 {[%clk 0:00:30]} 22. Bxf6 {[%clk 0:00:52]}  exf6 {[%clk 0:00:30]} 23. Kf2 {[%clk 0:00:48]}  Kf8 {[%clk 0:00:27]} 24. Rxc8+ {[%clk 0:00:43]}  Rxc8 {[%clk 0:00:27]} 25. Bxb7 {[%clk 0:00:42]}  Rc3 {[%clk 0:00:27]} 26. Rd1 {[%clk 0:00:37]}  Bxe3+ {[%clk 0:00:23]} 27. Kg2 {[%clk 0:00:36]}  Ke7 {[%clk 0:00:23]} 28. Bd5 {[%clk 0:00:30]}  Rc2 {[%clk 0:00:20]} 29. Kf3 {[%clk 0:00:30]}  Bc5 {[%clk 0:00:18]} 30. a4 {[%clk 0:00:29]}  g5 {[%clk 0:00:15]} 31. h3 {[%clk 0:00:26]}  h5 {[%clk 0:00:15]} 32. g4 {[%clk 0:00:11]}  fxg4+ {[%clk 0:00:11]} 33. hxg4 {[%clk 0:00:11]}  h4 {[%clk 0:00:12]} 34. Rh1 {[%clk 0:00:03]}  Rc3+ {[%clk 0:00:11]} 0-1


[Site "https://www.chess.com"]

[Event "Titled Tuesday Blitz February 15 Late 2022"]
[White "Ladan, Nicholas"]
[Black "Cori T., Deysi"]
[WhiteFideId "30918855"]
[BlackFideId "3801934"]
[WhiteElo "2356"]
[BlackElo "2350"]
[Result "1-0"]
[Round "08"]
[TimeControl "180+1"]
[Date "2022.02.16"]
[WhiteClock "0:00:14"]
[BlackClock "0:00:42"]

1. d4 {[%clk 0:03:00]}  g6 {[%clk 0:02:59]} 2. c4 {[%clk 0:02:59]}  Bg7 {[%clk 0:03:00]} 3. Nf3 {[%clk 0:03:00]}  d6 {[%clk 0:03:00]} 4. g3 {[%clk 0:03:00]}  f5 {[%clk 0:03:00]} 5. Nc3 {[%clk 0:02:57]}  Nf6 {[%clk 0:03:01]} 6. Bg2 {[%clk 0:02:56]}  O-O {[%clk 0:03:01]} 7. Qc2 {[%clk 0:02:56]}  c6 {[%clk 0:03:02]} 8. O-O {[%clk 0:02:56]}  Nbd7 {[%clk 0:03:00]} 9. Rd1 {[%clk 0:02:56]}  h6 {[%clk 0:02:59]} 10. e4 {[%clk 0:02:54]}  fxe4 {[%clk 0:02:53]} 11. Nxe4 {[%clk 0:02:55]}  Qe8 {[%clk 0:02:53]} 12. Re1 {[%clk 0:02:50]}  Nxe4 {[%clk 0:02:51]} 13. Qxe4 {[%clk 0:02:51]}  Nf6 {[%clk 0:02:51]} 14. Qxe7 {[%clk 0:02:47]}  Qd8 {[%clk 0:02:35]} 15. Bf4 {[%clk 0:02:41]}  Qa5 {[%clk 0:02:12]} 16. Bxd6 {[%clk 0:01:55]}  Rf7 {[%clk 0:02:04]} 17. Qe5 {[%clk 0:01:45]}  Qd8 {[%clk 0:02:03]} 18. Nh4 {[%clk 0:01:37]}  Kh7 {[%clk 0:01:52]} 19. Be7 {[%clk 0:01:23]}  Qd7 {[%clk 0:01:46]} 20. Bxf6 {[%clk 0:01:01]}  Bxf6 {[%clk 0:01:47]} 21. Qe4 {[%clk 0:00:59]}  Rg7 {[%clk 0:01:47]} 22. d5 {[%clk 0:00:56]}  c5 {[%clk 0:01:44]} 23. Rad1 {[%clk 0:00:48]}  Qd6 {[%clk 0:01:42]} 24. Bf1 {[%clk 0:00:42]}  Bd7 {[%clk 0:01:38]} 25. Bd3 {[%clk 0:00:34]}  Re8 {[%clk 0:01:38]} 26. Qf3 {[%clk 0:00:25]}  Rxe1+ {[%clk 0:01:29]} 27. Rxe1 {[%clk 0:00:26]}  Bxh4 {[%clk 0:01:29]} 28. gxh4 {[%clk 0:00:25]}  Re7 {[%clk 0:01:24]} 29. Rxe7+ {[%clk 0:00:22]}  Qxe7 {[%clk 0:01:25]} 30. Qg3 {[%clk 0:00:21]}  Bf5 {[%clk 0:01:01]} 31. Bxf5 {[%clk 0:00:20]}  gxf5 {[%clk 0:01:01]} 32. d6 {[%clk 0:00:21]}  Qe1+ {[%clk 0:01:01]} 33. Kg2 {[%clk 0:00:21]}  Qd2 {[%clk 0:00:56]} 34. Qe5 {[%clk 0:00:21]}  f4 {[%clk 0:00:50]} 35. Qf5+ {[%clk 0:00:18]}  Kg7 {[%clk 0:00:49]} 36. d7 {[%clk 0:00:18]}  Qd6 {[%clk 0:00:45]} 37. h5 {[%clk 0:00:15]}  f3+ {[%clk 0:00:43]} 38. Kxf3 {[%clk 0:00:14]}  Qc6+ {[%clk 0:00:43]} 39. Kg3 {[%clk 0:00:14]}  Qd6+ {[%clk 0:00:43]} 40. Kg2 {[%clk 0:00:14]}  Qc6+ {[%clk 0:00:43]} 41. Qd5 {[%clk 0:00:15]}  Qf6 {[%clk 0:00:42]} 42. d8=Q {[%clk 0:00:14]} 1-0


[Site "https://www.chess.com"]

[Event "Titled Tuesday Blitz February 15 Late 2022"]
[White "Lavrik, Dmitry"]
[Black "Rosen, Eric"]
[WhiteFideId "24113190"]
[BlackFideId "2032562"]
[WhiteElo "2369"]
[BlackElo "2362"]
[Result "0-1"]
[Round "08"]
[TimeControl "180+1"]
[Date "2022.02.15"]
[WhiteClock "0:01:02"]
[BlackClock "0:00:33"]

1. e4 {[%clk 0:03:00]}  c5 {[%clk 0:02:58]} 2. Nf3 {[%clk 0:03:00]}  d6 {[%clk 0:02:57]} 3. d4 {[%clk 0:03:00]}  cxd4 {[%clk 0:02:58]} 4. Qxd4 {[%clk 0:03:01]}  a6 {[%clk 0:02:49]} 5. c4 {[%clk 0:02:42]}  Nc6 {[%clk 0:02:49]} 6. Qd2 {[%clk 0:02:42]}  g6 {[%clk 0:02:40]} 7. b3 {[%clk 0:02:40]}  Bh6 {[%clk 0:02:28]} 8. Qb2 {[%clk 0:02:38]}  Qa5+ {[%clk 0:02:21]} 9. Bd2 {[%clk 0:02:33]}  Bxd2+ {[%clk 0:02:13]} 10. Nbxd2 {[%clk 0:02:34]}  Nf6 {[%clk 0:02:12]} 11. a3 {[%clk 0:02:32]}  O-O {[%clk 0:01:59]} 12. b4 {[%clk 0:02:31]}  Qh5 {[%clk 0:01:57]} 13. Be2 {[%clk 0:02:30]}  Bg4 {[%clk 0:01:57]} 14. O-O {[%clk 0:01:28]}  Rac8 {[%clk 0:01:33]} 15. Rfe1 {[%clk 0:01:25]}  Qh6 {[%clk 0:01:20]} 16. e5 {[%clk 0:01:09]}  dxe5 {[%clk 0:01:09]} 17. Nxe5 {[%clk 0:01:10]}  Nxe5 {[%clk 0:01:02]} 18. Qxe5 {[%clk 0:01:10]}  Qxd2 {[%clk 0:01:00]} 19. Qxe7 {[%clk 0:01:10]}  Bxe2 {[%clk 0:00:46]} 20. Rxe2 {[%clk 0:01:04]}  Qc3 {[%clk 0:00:42]} 21. Rae1 {[%clk 0:01:02]}  Rfe8 {[%clk 0:00:33]} 0-1


[Site "https://www.chess.com"]

[Event "Titled Tuesday Blitz February 15 Late 2022"]
[White "Levine, Joseph"]
[Black "Stoleriu, George"]
[WhiteFideId "30940346"]
[BlackFideId "1227505"]
[WhiteElo "1802"]
[BlackElo "2203"]
[Result "0-1"]
[Round "08"]
[TimeControl "180+1"]
[Date "2022.02.16"]
[WhiteClock "0:00:07"]
[BlackClock "0:00:20"]

1. e4 {[%clk 0:03:00]}  e6 {[%clk 0:02:50]} 2. d3 {[%clk 0:03:00]}  d5 {[%clk 0:02:51]} 3. Nd2 {[%clk 0:03:01]}  c5 {[%clk 0:02:44]} 4. Ngf3 {[%clk 0:03:00]}  Bd6 {[%clk 0:02:39]} 5. g3 {[%clk 0:02:59]}  Nc6 {[%clk 0:02:39]} 6. Bg2 {[%clk 0:02:59]}  Nge7 {[%clk 0:02:38]} 7. O-O {[%clk 0:02:58]}  O-O {[%clk 0:02:37]} 8. Re1 {[%clk 0:02:56]}  Qc7 {[%clk 0:02:35]} 9. Qe2 {[%clk 0:02:57]}  f6 {[%clk 0:02:35]} 10. Nf1 {[%clk 0:02:56]}  d4 {[%clk 0:02:35]} 11. h4 {[%clk 0:02:56]}  e5 {[%clk 0:02:35]} 12. Kh2 {[%clk 0:02:50]}  Rb8 {[%clk 0:02:35]} 13. Bh3 {[%clk 0:02:51]}  b5 {[%clk 0:02:30]} 14. Bxc8 {[%clk 0:02:50]}  Qxc8 {[%clk 0:02:31]} 15. b3 {[%clk 0:02:46]}  c4 {[%clk 0:02:30]} 16. dxc4 {[%clk 0:02:46]}  bxc4 {[%clk 0:02:29]} 17. Qxc4+ {[%clk 0:02:47]}  Kh8 {[%clk 0:02:29]} 18. Bd2 {[%clk 0:02:41]}  Nb4 {[%clk 0:02:21]} 19. Qxc8 {[%clk 0:02:38]}  Rfxc8 {[%clk 0:02:22]} 20. Bxb4 {[%clk 0:02:34]}  Bxb4 {[%clk 0:02:23]} 21. Re2 {[%clk 0:02:35]}  Rc3 {[%clk 0:02:21]} 22. Ne1 {[%clk 0:02:30]}  Rbc8 {[%clk 0:02:21]} 23. a3 {[%clk 0:02:29]}  Bd6 {[%clk 0:02:19]} 24. Ra2 {[%clk 0:02:27]}  a5 {[%clk 0:01:55]} 25. a4 {[%clk 0:02:16]}  Nc6 {[%clk 0:01:55]} 26. Nd3 {[%clk 0:02:11]}  Nb4 {[%clk 0:01:54]} 27. Nxb4 {[%clk 0:02:11]}  Bxb4 {[%clk 0:01:55]} 28. Kg2 {[%clk 0:02:08]}  d3 {[%clk 0:01:51]} 29. cxd3 {[%clk 0:02:07]}  Rxb3 {[%clk 0:01:48]} 30. Rec2 {[%clk 0:02:04]}  Rbc3 {[%clk 0:01:43]} 31. Ne3 {[%clk 0:02:02]}  h5 {[%clk 0:01:34]} 32. Kf1 {[%clk 0:01:50]}  R8c5 {[%clk 0:01:26]} 33. Rxc3 {[%clk 0:01:44]}  Rxc3 {[%clk 0:01:25]} 34. Ke2 {[%clk 0:01:44]}  Rb3 {[%clk 0:01:24]} 35. Nd5 {[%clk 0:01:31]}  Bc5 {[%clk 0:01:22]} 36. Rc2 {[%clk 0:01:22]}  Bd4 {[%clk 0:01:22]} 37. Ra2 {[%clk 0:01:08]}  Kh7 {[%clk 0:01:16]} 38. f4 {[%clk 0:01:02]}  Rb1 {[%clk 0:01:11]} 39. f5 {[%clk 0:00:44]}  Rg1 {[%clk 0:01:06]} 40. Kf3 {[%clk 0:00:44]}  Rf1+ {[%clk 0:01:03]} 41. Kg2 {[%clk 0:00:44]}  Rd1 {[%clk 0:01:03]} 42. Ra3 {[%clk 0:00:34]}  Rd2+ {[%clk 0:01:03]} 43. Kh3 {[%clk 0:00:28]}  Bg1 {[%clk 0:01:01]} 44. g4 {[%clk 0:00:28]}  Kh6 {[%clk 0:00:51]} 45. Rb3 {[%clk 0:00:21]}  Bd4 {[%clk 0:00:34]} 46. Rb8 {[%clk 0:00:16]}  Rxd3+ {[%clk 0:00:33]} 47. Kg2 {[%clk 0:00:15]}  g5 {[%clk 0:00:22]} 48. Rg8 {[%clk 0:00:06]}  Rd2+ {[%clk 0:00:15]} 49. Kf1 {[%clk 0:00:06]}  Rf2+ {[%clk 0:00:15]} 50. Ke1 {[%clk 0:00:07]}  hxg4 {[%clk 0:00:15]} 51. Rg6+ {[%clk 0:00:06]}  Kh5 {[%clk 0:00:16]} 52. Nxf6+ {[%clk 0:00:06]}  Kxh4 {[%clk 0:00:16]} 53. Rh6+ {[%clk 0:00:05]}  Kg3 {[%clk 0:00:16]} 54. Rh5 {[%clk 0:00:04]}  Rf4 {[%clk 0:00:14]} 55. Rxg5 {[%clk 0:00:04]}  Kf3 {[%clk 0:00:15]} 56. Rxg4 {[%clk 0:00:04]}  Rxg4 {[%clk 0:00:15]} 57. Nxg4 {[%clk 0:00:04]}  Kxg4 {[%clk 0:00:16]} 58. f6 {[%clk 0:00:05]}  Bc5 {[%clk 0:00:17]} 59. f7 {[%clk 0:00:05]}  Kg5 {[%clk 0:00:17]} 60. Ke2 {[%clk 0:00:06]}  Kg6 {[%clk 0:00:18]} 61. Kd3 {[%clk 0:00:07]}  Kxf7 {[%clk 0:00:18]} 62. Kc4 {[%clk 0:00:08]}  Bb4 {[%clk 0:00:18]} 63. Kd5 {[%clk 0:00:08]}  Kf6 {[%clk 0:00:19]} 64. Kc6 {[%clk 0:00:08]}  Kg5 {[%clk 0:00:19]} 65. Kd5 {[%clk 0:00:09]}  Kf4 {[%clk 0:00:19]} 66. Kc4 {[%clk 0:00:07]}  Kxe4 {[%clk 0:00:20]} 0-1


[Site "https://www.chess.com"]

[Event "Titled Tuesday Blitz February 15 Late 2022"]
[White "Li, Hui"]
[Black "Antonio, Jorge Carlos"]
[WhiteFideId "15400310"]
[BlackFideId "113190"]
[WhiteElo "1954"]
[BlackElo "2247"]
[Result "1/2-1/2"]
[Round "08"]
[TimeControl "180+1"]
[Date "2022.02.16"]
[WhiteClock "0:00:04"]
[BlackClock "0:00:06"]

1. e4 {[%clk 0:03:00]}  e5 {[%clk 0:02:59]} 2. Nf3 {[%clk 0:03:01]}  Nc6 {[%clk 0:02:59]} 3. Bb5 {[%clk 0:03:01]}  a6 {[%clk 0:02:59]} 4. Bxc6 {[%clk 0:03:02]}  dxc6 {[%clk 0:02:58]} 5. O-O {[%clk 0:03:03]}  Bg4 {[%clk 0:02:51]} 6. h3 {[%clk 0:03:02]}  Bxf3 {[%clk 0:02:51]} 7. Qxf3 {[%clk 0:03:02]}  Nf6 {[%clk 0:02:51]} 8. d3 {[%clk 0:03:02]}  Be7 {[%clk 0:02:48]} 9. Qg3 {[%clk 0:02:55]}  O-O {[%clk 0:02:46]} 10. Qxe5 {[%clk 0:02:45]}  Bd6 {[%clk 0:02:41]} 11. Qg5 {[%clk 0:02:40]}  Qe7 {[%clk 0:02:25]} 12. Nc3 {[%clk 0:02:32]}  Be5 {[%clk 0:02:21]} 13. Bf4 {[%clk 0:02:23]}  Bxf4 {[%clk 0:02:18]} 14. Qxf4 {[%clk 0:02:24]}  Rad8 {[%clk 0:02:12]} 15. Rfe1 {[%clk 0:02:19]}  Qb4 {[%clk 0:02:11]} 16. Rab1 {[%clk 0:02:12]}  Rfe8 {[%clk 0:02:08]} 17. Qxc7 {[%clk 0:02:07]}  Rd7 {[%clk 0:02:06]} 18. Qg3 {[%clk 0:02:07]}  a5 {[%clk 0:02:05]} 19. a3 {[%clk 0:02:04]}  Qb6 {[%clk 0:02:03]} 20. Qe3 {[%clk 0:02:00]}  Qc7 {[%clk 0:02:03]} 21. b4 {[%clk 0:01:40]}  axb4 {[%clk 0:02:00]} 22. axb4 {[%clk 0:01:41]}  Re6 {[%clk 0:01:58]} 23. Ne2 {[%clk 0:01:29]}  Ne8 {[%clk 0:01:50]} 24. Nd4 {[%clk 0:01:20]}  Rg6 {[%clk 0:01:49]} 25. Nf5 {[%clk 0:01:17]}  Nd6 {[%clk 0:01:43]} 26. Nxd6 {[%clk 0:01:11]}  Qxd6 {[%clk 0:01:41]} 27. Qf3 {[%clk 0:01:03]}  Qe6 {[%clk 0:01:40]} 28. Qf5 {[%clk 0:00:57]}  Qd6 {[%clk 0:01:34]} 29. b5 {[%clk 0:00:56]}  c5 {[%clk 0:01:32]} 30. Ra1 {[%clk 0:00:45]}  h6 {[%clk 0:01:30]} 31. Ra8+ {[%clk 0:00:41]}  Rd8 {[%clk 0:01:26]} 32. Rxd8+ {[%clk 0:00:39]}  Qxd8 {[%clk 0:01:26]} 33. Qd5 {[%clk 0:00:30]}  Qc8 {[%clk 0:01:20]} 34. Qf5 {[%clk 0:00:20]}  Qc7 {[%clk 0:01:15]} 35. e5 {[%clk 0:00:15]}  Qa5 {[%clk 0:01:08]} 36. Re4 {[%clk 0:00:09]}  Qa1+ {[%clk 0:01:07]} 37. Kh2 {[%clk 0:00:08]}  Re6 {[%clk 0:01:07]} 38. Rg4 {[%clk 0:00:04]}  Qxe5+ {[%clk 0:01:03]} 39. Qxe5 {[%clk 0:00:04]}  Rxe5 {[%clk 0:01:03]} 40. Rc4 {[%clk 0:00:05]}  b6 {[%clk 0:01:02]} 41. c3 {[%clk 0:00:04]}  Rd5 {[%clk 0:01:02]} 42. d4 {[%clk 0:00:04]}  cxd4 {[%clk 0:01:02]} 43. cxd4 {[%clk 0:00:04]}  Rxb5 {[%clk 0:01:02]} 44. Rc8+ {[%clk 0:00:04]}  Kh7 {[%clk 0:01:02]} 45. Rd8 {[%clk 0:00:04]}  Rb2 {[%clk 0:00:59]} 46. Kg3 {[%clk 0:00:04]}  Rd2 {[%clk 0:00:57]} 47. d5 {[%clk 0:00:05]}  b5 {[%clk 0:00:58]} 48. Kf3 {[%clk 0:00:05]}  b4 {[%clk 0:00:58]} 49. Ke3 {[%clk 0:00:06]}  Rd1 {[%clk 0:00:57]} 50. Ke4 {[%clk 0:00:06]}  b3 {[%clk 0:00:56]} 51. Rb8 {[%clk 0:00:06]}  Rb1 {[%clk 0:00:47]} 52. Kf3 {[%clk 0:00:06]}  b2 {[%clk 0:00:47]} 53. d6 {[%clk 0:00:07]}  Rd1 {[%clk 0:00:47]} 54. Rxb2 {[%clk 0:00:07]}  Rxd6 {[%clk 0:00:47]} 55. Rb7 {[%clk 0:00:08]}  Kg6 {[%clk 0:00:46]} 56. g3 {[%clk 0:00:07]}  f6 {[%clk 0:00:46]} 57. Kg2 {[%clk 0:00:07]}  Rd2 {[%clk 0:00:46]} 58. h4 {[%clk 0:00:07]}  h5 {[%clk 0:00:45]} 59. Ra7 {[%clk 0:00:07]}  Rc2 {[%clk 0:00:45]} 60. Rd7 {[%clk 0:00:07]}  Rb2 {[%clk 0:00:45]} 61. Rd4 {[%clk 0:00:07]}  Rb3 {[%clk 0:00:45]} 62. Rd1 {[%clk 0:00:06]}  Rb2 {[%clk 0:00:45]} 63. Rd5 {[%clk 0:00:06]}  Rb3 {[%clk 0:00:44]} 64. Ra5 {[%clk 0:00:06]}  Rb2 {[%clk 0:00:45]} 65. Ra8 {[%clk 0:00:05]}  Rb3 {[%clk 0:00:44]} 66. Ra4 {[%clk 0:00:06]}  Rc3 {[%clk 0:00:44]} 67. Re4 {[%clk 0:00:05]}  Rc2 {[%clk 0:00:44]} 68. Kf3 {[%clk 0:00:06]}  Rc3+ {[%clk 0:00:44]} 69. Kf4 {[%clk 0:00:05]}  Rc2 {[%clk 0:00:44]} 70. Re3 {[%clk 0:00:04]}  Rxf2+ {[%clk 0:00:44]} 71. Ke4 {[%clk 0:00:04]}  Rf1 {[%clk 0:00:40]} 72. Ra3 {[%clk 0:00:03]}  Re1+ {[%clk 0:00:40]} 73. Kf3 {[%clk 0:00:03]}  Re5 {[%clk 0:00:39]} 74. Kg2 {[%clk 0:00:03]}  Kf5 {[%clk 0:00:39]} 75. Ra7 {[%clk 0:00:03]}  g6 {[%clk 0:00:40]} 76. Rg7 {[%clk 0:00:03]}  Rd5 {[%clk 0:00:38]} 77. Rg8 {[%clk 0:00:03]}  g5 {[%clk 0:00:37]} 78. hxg5 {[%clk 0:00:03]}  fxg5 {[%clk 0:00:37]} 79. Rf8+ {[%clk 0:00:04]}  Kg4 {[%clk 0:00:37]} 80. Rg8 {[%clk 0:00:02]}  Rd2+ {[%clk 0:00:37]} 81. Kg1 {[%clk 0:00:03]}  Rd3 {[%clk 0:00:34]} 82. Kf2 {[%clk 0:00:03]}  Rf3+ {[%clk 0:00:33]} 83. Ke2 {[%clk 0:00:02]}  Rxg3 {[%clk 0:00:33]} 84. Kf2 {[%clk 0:00:03]}  Rf3+ {[%clk 0:00:33]} 85. Kg2 {[%clk 0:00:03]}  Rg3+ {[%clk 0:00:33]} 86. Kh2 {[%clk 0:00:03]}  h4 {[%clk 0:00:33]} 87. Ra8 {[%clk 0:00:02]}  Rf3 {[%clk 0:00:33]} 88. Ra4+ {[%clk 0:00:02]}  Rf4 {[%clk 0:00:33]} 89. Ra8 {[%clk 0:00:03]}  Rb4 {[%clk 0:00:31]} 90. Ra5 {[%clk 0:00:02]}  Kf4 {[%clk 0:00:30]} 91. Kh3 {[%clk 0:00:02]}  Rb3+ {[%clk 0:00:29]} 92. Kg2 {[%clk 0:00:01]}  g4 {[%clk 0:00:30]} 93. Ra4+ {[%clk 0:00:02]}  Kf5 {[%clk 0:00:29]} 94. Ra5+ {[%clk 0:00:02]}  Kg6 {[%clk 0:00:28]} 95. Ra6+ {[%clk 0:00:02]}  Kf5 {[%clk 0:00:26]} 96. Ra5+ {[%clk 0:00:03]}  Kf4 {[%clk 0:00:26]} 97. Ra4+ {[%clk 0:00:03]}  Kg5 {[%clk 0:00:26]} 98. Ra5+ {[%clk 0:00:04]}  Kf6 {[%clk 0:00:25]} 99. Ra6+ {[%clk 0:00:04]}  Ke7 {[%clk 0:00:24]} 100. Ra7+ {[%clk 0:00:05]}  Kd6 {[%clk 0:00:24]} 101. Ra6+ {[%clk 0:00:05]}  Kc5 {[%clk 0:00:24]} 102. Rh6 {[%clk 0:00:05]}  Rb2+ {[%clk 0:00:22]} 103. Kg1 {[%clk 0:00:05]}  h3 {[%clk 0:00:23]} 104. Rg6 {[%clk 0:00:05]}  Rb4 {[%clk 0:00:22]} 105. Kf2 {[%clk 0:00:05]}  Kd5 {[%clk 0:00:22]} 106. Rg5+ {[%clk 0:00:05]}  Ke6 {[%clk 0:00:21]} 107. Kg3 {[%clk 0:00:05]}  Kf6 {[%clk 0:00:17]} 108. Ra5 {[%clk 0:00:06]}  Kg6 {[%clk 0:00:16]} 109. Rc5 {[%clk 0:00:05]}  Kf6 {[%clk 0:00:16]} 110. Ra5 {[%clk 0:00:05]}  Ke6 {[%clk 0:00:16]} 111. Rh5 {[%clk 0:00:04]}  Re4 {[%clk 0:00:13]} 112. Ra5 {[%clk 0:00:04]}  Kf6 {[%clk 0:00:13]} 113. Rb5 {[%clk 0:00:04]}  Re5 {[%clk 0:00:12]} 114. Rb6+ {[%clk 0:00:04]}  Kf5 {[%clk 0:00:12]} 115. Rb8 {[%clk 0:00:04]}  Rd5 {[%clk 0:00:11]} 116. Rf8+ {[%clk 0:00:03]}  Kg5 {[%clk 0:00:10]} 117. Rg8+ {[%clk 0:00:03]}  Kf5 {[%clk 0:00:09]} 118. Rf8+ {[%clk 0:00:03]}  Kg5 {[%clk 0:00:07]} 119. Rg8+ {[%clk 0:00:04]}  Kh5 {[%clk 0:00:07]} 120. Rh8+ {[%clk 0:00:04]}  Kg6 {[%clk 0:00:07]} 121. Rg8+ {[%clk 0:00:04]}  Kf5 {[%clk 0:00:06]} 122. Rf8+ {[%clk 0:00:04]} 1/2-1/2


[Site "https://www.chess.com"]

[Event "Titled Tuesday Blitz February 15 Late 2022"]
[White "Martirosyan, Haik M."]
[Black "Xiong, Jeffery"]
[WhiteFideId "13306553"]
[BlackFideId "2047640"]
[WhiteElo "2735"]
[BlackElo "2727"]
[Result "1/2-1/2"]
[Round "08"]
[TimeControl "180+1"]
[Date "2022.02.15"]
[WhiteClock "0:00:41"]
[BlackClock "0:00:05"]

1. c4 {[%clk 0:03:00]}  g6 {[%clk 0:02:58]} 2. Nc3 {[%clk 0:03:00]}  c5 {[%clk 0:02:57]} 3. Nf3 {[%clk 0:02:57]}  Bg7 {[%clk 0:02:57]} 4. e3 {[%clk 0:02:57]}  Nf6 {[%clk 0:02:57]} 5. d4 {[%clk 0:02:57]}  cxd4 {[%clk 0:02:58]} 6. exd4 {[%clk 0:02:58]}  d5 {[%clk 0:02:58]} 7. cxd5 {[%clk 0:02:55]}  Nxd5 {[%clk 0:02:59]} 8. Bc4 {[%clk 0:02:54]}  Nb6 {[%clk 0:02:58]} 9. Be2 {[%clk 0:02:54]}  O-O {[%clk 0:02:58]} 10. O-O {[%clk 0:02:54]}  Nc6 {[%clk 0:02:56]} 11. Be3 {[%clk 0:02:53]}  Bg4 {[%clk 0:02:45]} 12. d5 {[%clk 0:02:46]}  Bxf3 {[%clk 0:02:45]} 13. Bxf3 {[%clk 0:02:45]}  Ne5 {[%clk 0:02:46]} 14. Re1 {[%clk 0:02:30]}  Nbc4 {[%clk 0:02:31]} 15. Bc1 {[%clk 0:02:29]}  Rc8 {[%clk 0:02:25]} 16. Be2 {[%clk 0:02:29]}  a6 {[%clk 0:01:21]} 17. Bf1 {[%clk 0:02:20]}  Re8 {[%clk 0:01:20]} 18. Rb1 {[%clk 0:02:15]}  Qa5 {[%clk 0:01:16]} 19. Qb3 {[%clk 0:02:03]}  b5 {[%clk 0:01:14]} 20. Bf4 {[%clk 0:02:03]}  Nd7 {[%clk 0:01:10]} 21. Rec1 {[%clk 0:01:55]}  Nxb2 {[%clk 0:00:53]} 22. Rxb2 {[%clk 0:01:49]}  Rxc3 {[%clk 0:00:53]} 23. Rxc3 {[%clk 0:01:49]}  Qxc3 {[%clk 0:00:53]} 24. Rc2 {[%clk 0:01:39]}  Qxb3 {[%clk 0:00:51]} 25. axb3 {[%clk 0:01:40]}  Bd4 {[%clk 0:00:51]} 26. Rc6 {[%clk 0:01:30]}  Ra8 {[%clk 0:00:40]} 27. Be2 {[%clk 0:01:25]}  Nc5 {[%clk 0:00:35]} 28. b4 {[%clk 0:01:24]}  Ne4 {[%clk 0:00:36]} 29. Kf1 {[%clk 0:01:18]}  a5 {[%clk 0:00:30]} 30. bxa5 {[%clk 0:01:04]}  Rxa5 {[%clk 0:00:31]} 31. g4 {[%clk 0:00:57]}  Kg7 {[%clk 0:00:16]} 32. Rc7 {[%clk 0:00:56]}  Ra1+ {[%clk 0:00:08]} 33. Kg2 {[%clk 0:00:52]}  Ra2 {[%clk 0:00:09]} 34. Kf3 {[%clk 0:00:52]}  Nc3 {[%clk 0:00:07]} 35. Rxe7 {[%clk 0:00:49]}  Nxd5 {[%clk 0:00:07]} 36. Re4 {[%clk 0:00:42]}  Nxf4 {[%clk 0:00:03]} 37. Rxf4 {[%clk 0:00:43]}  Be5 {[%clk 0:00:03]} 38. Rb4 {[%clk 0:00:42]}  Bxh2 {[%clk 0:00:02]} 39. Rxb5 {[%clk 0:00:43]}  Bd6 {[%clk 0:00:03]} 40. Rd5 {[%clk 0:00:41]}  Ra3+ {[%clk 0:00:03]} 41. Rd3 {[%clk 0:00:41]}  Rxd3+ {[%clk 0:00:02]} 42. Bxd3 {[%clk 0:00:42]}  Kf6 {[%clk 0:00:02]} 43. Bc4 {[%clk 0:00:42]}  h6 {[%clk 0:00:02]} 44. Ke4 {[%clk 0:00:40]}  g5 {[%clk 0:00:03]} 45. f3 {[%clk 0:00:40]}  Bf4 {[%clk 0:00:04]} 46. Bb3 {[%clk 0:00:40]}  Kg7 {[%clk 0:00:04]} 47. Ba4 {[%clk 0:00:41]}  f6 {[%clk 0:00:05]} 1/2-1/2


[Site "https://www.chess.com"]